fUST/lending_fUST_20250717
["ID","MTS","AMOUNT","RATE_DAILY","PERIOD"]
[372559749,1752682303059,-2288.0,0.00024985,2]
[372559750,1752682303069,-169.11112617,0.00024986,2]
[372559751,1752682303079,-309.068159,0.00024989,14]
[372559752,1752682303089,-1000.0,0.00025,10]
[372559753,1752682303099,-75317.15,0.00025,7]
[372559754,1752682303109,-838.99048831,0.00025,10]
[372559755,1752682303119,-215.5496034,0.00025,10]
[372559756,1752682303130,-215.5496034,0.00025,3]
[372559757,1752682303140,-214.40824756,0.00025,10]
[372559758,1752682303150,-4000.0,0.00025,4]
[372559759,1752682303160,-2288.0,0.00025012,2]
[372559760,1752682303170,-309.068159,0.00025046,7]
[372559761,1752682303180,-306.0,0.00025068,2]
[372559762,1752682303190,-178.021619,0.00025068,2]
[372559763,1752682303201,-576.8651031,0.00025068,2]
[372559764,1752682303211,-178.021619,0.00025068,2]
[372559765,1752682303221,-576.8651031,0.00025068,2]
[372559766,1752682303231,-319.3215243,0.00025068,2]
[372559767,1752682303242,-178.021619,0.00025068,2]
[372559768,1752682303252,-576.8651031,0.00025068,2]
[372559769,1752682303262,-178.021619,0.00025068,2]
[372559770,1752682303272,-306.0,0.00025068,2]
[372559771,1752682303281,-1015.1045761,0.00025068,2]
[372559772,1752682303292,-178.021619,0.00025068,2]
[372559773,1752682303306,-211.38890771,0.00025096,2]
[372559774,1752682303317,-5418.1,0.000251,7]
[372559775,1752682303327,-49268.54,0.000251,2]
[372559776,1752682303337,-44089.53,0.000251,7]
[372559777,1752682303347,-158.54168078,0.00025123,2]
[372559778,1752682303358,-303.5,0.00025136,7]
[372559779,1752682303370,-654.664,0.00025159,2]
[372559780,1752682303379,-2200.0,0.00025159,2]
[372559781,1752682303390,-7562.15499518,0.00025176,12]
[372559782,1752682303401,-2566.0,0.000252,2]
[372559783,1752682303411,-2566.0,0.000252,2]
[372559784,1752682303420,-2566.0,0.000252,2]
[372559785,1752682303430,-2566.0,0.000252,2]
[372559786,1752682303440,-2566.0,0.000252,2]
[372559787,1752682303450,-2566.0,0.000252,2]
[372559788,1752682303460,-2566.0,0.000252,2]
[372559789,1752682303470,-2566.0,0.000252,2]
[372559790,1752682303479,-2566.0,0.000252,2]
[372559791,1752682303489,-2566.0,0.000252,2]
[372559792,1752682303499,-678.55,0.00025205,2]
[372559793,1752682303508,-555.83,0.00025205,2]
[372559794,1752682303518,-774.56,0.00025205,2]
[372559795,1752682303528,-537.73,0.00025205,2]
[372559796,1752682303538,-396.65307163,0.00025205,2]
[372559797,1752682303551,-508.47,0.00025205,2]
[372559798,1752682303560,-462.87,0.00025205,2]
[372559799,1752682303571,-512.75,0.00025205,2]
[372559800,1752682303581,-800.36,0.00025205,2]
[372559801,1752682303591,-705.11,0.00025205,2]
[372559802,1752682303600,-895.39,0.00025205,2]
[372559803,1752682303610,-749.62,0.00025205,2]
[372559804,1752682303621,-407.41580795,0.00025205,2]
[372559805,1752682303630,-1006.97,0.00025205,2]
[372559806,1752682303640,-582.75,0.00025205,2]
[372559807,1752682303649,-1201.4,0.00025205,2]
[372559808,1752682303659,-1474.43,0.00025205,2]
[372559809,1752682303669,-828.54,0.00025205,2]
[372559810,1752682303679,-460.0,0.00025205,2]
[372559811,1752682303689,-507.41,0.00025205,2]
[372559812,1752682303699,-632.11,0.00025205,2]
[372559813,1752682303709,-1356.45,0.00025205,2]
[372559814,1752682303718,-761.93,0.00025205,2]
[372559815,1752682303728,-413.43651424,0.00025205,2]
[372559816,1752682303738,-600.35,0.00025205,2]
[372559817,1752682303748,-949.14,0.00025205,2]
[372559818,1752682303759,-624.22,0.00025205,2]
[372559819,1752682303768,-1370.55,0.00025205,2]
[372559820,1752682303778,-1009.28,0.00025205,2]
[372559821,1752682303788,-664.71,0.00025205,2]
[372559822,1752682303798,-569.95,0.00025205,2]
[372559823,1752682303808,-2013.52,0.00025205,2]
[372559824,1752682303819,-712.27,0.00025205,2]
[372559825,1752682303829,-3683.85,0.00025205,2]
[372559826,1752682303839,-952.9,0.00025205,2]
[372559827,1752682303850,-1497.64,0.00025205,2]
[372559828,1752682303860,-347.55,0.00025205,2]
[372559829,1752682303870,-619.97,0.00025205,2]
[372559830,1752682303879,-585.24,0.00025205,2]
[372559831,1752682303889,-777.46,0.00025205,2]
[372559832,1752682303899,-1172.05,0.00025205,2]
[372559833,1752682303911,-1533.49,0.00025205,2]
[372559834,1752682303921,-9374.46,0.00025205,2]
[372559835,1752682303931,-3198.06,0.00025205,2]
[372559836,1752682303940,-512.38,0.00025205,2]
[372559837,1752682303950,-482.07672015,0.00025205,2]
[372559838,1752682303963,-605.37,0.00025205,2]
[372559839,1752682303973,-2434.41,0.00025205,2]
[372559840,1752682303985,-838.16,0.00025205,2]
[372559841,1752682303994,-5102.38,0.00025205,2]
[372559842,1752682304004,-602.13,0.00025205,2]
[372559843,1752682304013,-1404.59,0.00025205,2]
[372559844,1752682304023,-499.74,0.00025205,2]
[372559845,1752682304033,-1737.0,0.00025205,2]
[372559846,1752682304042,-8485.34,0.00025205,2]
[372559847,1752682304053,-1068.7,0.00025205,2]
[372559848,1752682304062,-715.65,0.00025205,2]
[372559849,1752682304073,-957.64,0.00025205,2]
[372559850,1752682304083,-1077.39,0.00025205,2]
[372559851,1752682304092,-461.69,0.00025205,2]
[372559852,1752682304102,-1115.86,0.00025205,2]
[372559853,1752682304111,-523.69,0.00025205,2]
[372559854,1752682304121,-4066.52,0.00025205,2]
[372559855,1752682304131,-619.31,0.00025205,2]
[372559856,1752682304140,-574.27,0.00025205,2]
[372559857,1752682304150,-1328.1,0.00025205,2]
[372559858,1752682304159,-2299.85,0.00025205,2]
[372559859,1752682304168,-773.05,0.00025205,2]
[372559860,1752682304178,-918.72,0.00025205,2]
[372559861,1752682304188,-4580.98,0.00025205,2]
[372559862,1752682304197,-755.59,0.00025205,2]
[372559863,1752682304207,-913.1,0.00025205,2]
[372559864,1752682304217,-810.6,0.00025205,2]
[372559865,1752682304227,-1927.53,0.00025205,2]
[372559866,1752682304237,-477.77,0.00025205,2]
[372559867,1752682304247,-2098.91,0.00025205,2]
[372559868,1752682304257,-850.69,0.00025205,2]
[372559869,1752682304266,-3246.09,0.00025205,2]
[372559870,1752682304276,-460.0,0.00025205,2]
[372559871,1752682304286,-496.33,0.00025205,2]
[372559872,1752682304297,-1129.6,0.00025205,2]
[372559873,1752682304307,-4054.42,0.00025205,2]
[372559874,1752682304317,-211.38890771,0.00025205,2]
[372559875,1752682304327,-500.0,0.00025206,2]
[372559876,1752682304337,-500.0,0.00025206,2]
[372559877,1752682304347,-151.0,0.00025206,2]
[372559878,1752682304356,-275.53793141,0.00025206,2]
[372559879,1752682304370,-500.0,0.00025206,2]
[372559880,1752682304379,-151.0,0.00025206,2]
[372559881,1752682304390,-1240.0,0.00025206,2]
[372559882,1752682304401,-500.0,0.00025206,2]
[372559883,1752682304410,-151.0,0.00025206,2]
[372559884,1752682304420,-500.0,0.00025206,2]
[372559885,1752682304431,-151.0,0.00025206,2]
[372559886,1752682304442,-500.0,0.00025206,2]
[372559887,1752682304452,-151.0,0.00025206,2]
[372559888,1752682304463,-151.0,0.00025206,2]
[372559889,1752682304472,-151.0,0.00025206,2]
[372559890,1752682304482,-500.0,0.00025206,2]
[372559891,1752682304492,-1809.0,0.00025206,2]
[372559892,1752682304510,-500.0,0.00025206,2]
[372559893,1752682304526,-500.0,0.00025206,2]
[372559894,1752682304549,-500.0,0.00025206,2]
[372559895,1752682304560,-500.0,0.00025206,2]
[372559896,1752682304573,-151.0,0.00025206,2]
[372559897,1752682304583,-151.0,0.00025206,2]
[372559898,1752682304592,-205.0,0.0002523,2]
[372559899,1752682304602,-206.0,0.0002523,2]
[372559900,1752682304612,-205.0,0.0002523,2]
[372559901,1752682304621,-321188.73,0.00025236,11]
[372559902,1752682304631,-58017.76,0.00025236,11]
[372559903,1752682304640,-6110.02234996,0.00025267,5]
[372559904,1752682304650,-5000.0,0.00025267,2]
[372559905,1752682304660,-5000.0,0.00025267,2]
[372559906,1752682304670,-5000.0,0.00025267,4]
[372559907,1752682304679,-5000.0,0.00025267,2]
[372559908,1752682304690,-200.0,0.0002528,12]
[372559909,1752682304699,-160.0,0.00025289,11]
[372559910,1752682304709,-822.94005215,0.000253,7]
[372559911,1752682305060,-1117.080004,0.000253,7]
[372559912,1752682305072,-2313.05994385,0.000253,7]
[372559913,1752682305082,-429.1687796,0.00025301,2]
[372559914,1752682305092,-429.1687796,0.00025301,2]
[372559915,1752682305101,-153.3126679,0.00025301,2]
[372559916,1752682305111,-211.38890771,0.00025315,2]
[372559917,1752682305121,-169.11112617,0.00025315,2]
[372559918,1752682305130,-158.54168078,0.00025315,2]
[372559919,1752682305140,-178.021619,0.0002532,2]
[372559920,1752682305149,-576.8651031,0.0002532,2]
[372559921,1752682305160,-1160.0,0.00025368,2]
[372559922,1752682305170,-2108.068519,0.00025369,16]
[372559923,1752682305180,-1762.429192,0.0002538,5]
[372559924,1752682305190,-763.18,0.000254,31]
[372559925,1752682305200,-763.18,0.000254,31]
[372559926,1752682305209,-763.18,0.000254,31]
[372559927,1752682305219,-763.18,0.000254,31]
[372559928,1752682305229,-763.18,0.000254,31]
[372559929,1752682305238,-763.18,0.000254,31]
[372559930,1752682305248,-763.18,0.000254,31]
[372559931,1752682305257,-763.18,0.000254,31]
[372559932,1752682305268,-763.18,0.000254,31]
[372559933,1752682305278,-763.18,0.000254,31]
[372559934,1752682305287,-763.18,0.000254,31]
[372559935,1752682305299,-763.18,0.000254,31]
[372559936,1752682305310,-763.18,0.000254,31]
[372559937,1752682305320,-763.18,0.000254,31]
[372559938,1752682305330,-763.18,0.000254,31]
[372559939,1752682305340,-763.18,0.000254,31]
[372559940,1752682305354,-1000.0,0.000254,5]
[372559941,1752682305365,-1600.0,0.00025405,2]
[372559942,1752682305376,-7562.15499518,0.00025417,13]
[372559943,1752682305386,-1000.0,0.0002542,5]
[372559944,1752682305398,-1000.2748905,0.00025421,2]
[372559945,1752682305408,-900.0,0.00025432,2]
[372559946,1752682305418,-1000.0,0.0002544,5]
[372559947,1752682305428,-1600.0,0.00025453,2]
[372559948,1752682305439,-900.0,0.00025456,2]
[372559949,1752682305449,-1000.0,0.0002546,5]
[372559950,1752682305459,-500.0,0.00025462,2]
[372559951,1752682305469,-1600.0,0.00025472,2]
[372559952,1752682305478,-678.77220608,0.00025479,2]
[372559953,1752682305487,-555.91,0.00025479,2]
[372559954,1752682305497,-774.72044024,0.00025479,2]
[372559955,1752682305507,-508.61513191,0.00025479,2]
[372559956,1752682305516,-462.88295514,0.00025479,2]
[372559957,1752682305527,-512.89393404,0.00025479,2]
[372559958,1752682305537,-800.55238409,0.00025479,2]
[372559959,1752682305548,-705.13742829,0.00025479,2]
[372559960,1752682305558,-895.50650395,0.00025479,2]
[372559961,1752682305568,-749.74,0.00025479,2]
[372559962,1752682305584,-1007.06594916,0.00025479,2]
[372559963,1752682305594,-582.76928204,0.00025479,2]
[372559964,1752682305604,-1201.4560135,0.00025479,2]
[372559965,1752682305614,-1474.63317748,0.00025479,2]
[372559966,1752682305624,-828.71006495,0.00025479,2]
[372559967,1752682305635,-384.94577825,0.00025479,2]
[372559968,1752682305645,-163.90086119,0.00025479,2]
[372559969,1752682306180,-2935.39259027,0.0001865,2]
[372559970,1752682306191,-500.0,0.00018753,2]
[372559971,1752682306200,-500.0,0.00018753,2]
[372559972,1752682306210,-500.0,0.00018753,2]
[372559973,1752682306220,-500.0,0.00018753,2]
[372559974,1752682306230,-500.0,0.00018753,2]
[372559975,1752682306240,-500.0,0.00018753,2]
[372559976,1752682306250,-500.0,0.00018753,2]
[372559977,1752682306260,-500.0,0.00018753,2]
[372559978,1752682306270,-500.0,0.00018753,2]
[372559979,1752682306279,-500.0,0.00018753,2]
[372559980,1752682306288,-500.0,0.00018753,2]
[372559981,1752682306299,-500.0,0.00018753,2]
[372559982,1752682306309,-500.0,0.00018753,2]
[372559983,1752682306319,-500.0,0.00018753,2]
[372559984,1752682306329,-500.0,0.00018753,2]
[372559985,1752682306339,-500.0,0.00018753,2]
[372559986,1752682306348,-369.84355351,0.00019075,2]
[372559987,1752682306362,-540.44922407,0.00019075,2]
[372559988,1752682306375,-2025.09981269,0.00019075,2]
[372559989,1752682306385,-460.0,0.00019178,2]
[372559990,1752682306396,-460.0,0.00019178,2]
[372559991,1752682306405,-460.0,0.00019178,2]
[372559992,1752682306416,-446.88666663,0.00019178,2]
[372559993,1752682306428,-13.11333337,0.00019178,2]
[372559994,1752682306438,-460.0,0.00019178,2]
[372559995,1752682306450,-460.0,0.00019178,2]
[372559996,1752682306460,-460.0,0.00019452,2]
[372559997,1752682306469,-460.0,0.00019452,2]
[372559998,1752682306479,-460.0,0.00019452,2]
[372559999,1752682306489,-460.0,0.00019452,2]
[372560000,1752682306499,-460.0,0.00019452,2]
[372560001,1752682306509,-460.0,0.00019726,2]
[372560002,1752682306519,-460.0,0.00019726,2]
[372560003,1752682306529,-460.0,0.00019726,2]
[372560004,1752682306540,-276.19,0.00019726,2]
[372560005,1752682306553,-460.0,0.0002,2]
[372560006,1752682306563,-460.0,0.00020273,2]
[372560007,1752682306573,-460.0,0.00020547,2]
[372560008,1752682306583,-160.0,0.00020988,2]
[372560009,1752682306593,-460.0,0.00021917,2]
[372560010,1752682306604,-1650.379535,0.0002205,7]
[372560011,1752682306615,-460.0,0.00022191,2]
[372560012,1752682306625,-460.0,0.00022465,2]
[372560013,1752682306635,-460.0,0.00022739,2]
[372560014,1752682306645,-460.0,0.00022739,2]
[372560015,1752682306771,-460.0,0.00023013,2]
[372560016,1752682306787,-460.0,0.00023013,2]
[372560017,1752682306799,-460.0,0.00023287,2]
[372560018,1752682306810,-1650.379535,0.0002334,7]
[372560019,1752682306820,-460.0,0.00023561,2]
[372560020,1752682306830,-460.0,0.00023835,2]
[372560021,1752682306840,-460.0,0.00024109,2]
[372560022,1752682306850,-319.0,0.00024164,7]
[372560023,1752682306861,-460.0,0.00024383,2]
[372560024,1752682306871,-460.0,0.00024657,2]
[372560025,1752682306882,-423.42,0.00024931,2]
[372560026,1752682306892,-343.52863099,0.00025479,2]
[372560027,1752682306903,-632.28445313,0.00025479,2]
[372560028,1752682306915,-1356.63951477,0.00025479,2]
[372560029,1752682306926,-762.12496025,0.00025479,2]
[372560030,1752682306936,-600.5,0.00025479,2]
[372560031,1752682306946,-949.18642408,0.00025479,2]
[372560032,1752682306955,-624.39,0.00025479,2]
[372560033,1752682306965,-1370.5513231,0.00025479,2]
[372560034,1752682306975,-664.80069426,0.00025479,2]
[372560035,1752682306985,-570.03362532,0.00025479,2]
[372560036,1752682306995,-712.28591399,0.00025479,2]
[372560037,1752682307005,-2013.70217764,0.00025479,2]
[372560038,1752682307015,-953.0796786,0.00025479,2]
[372560039,1752682307025,-1497.71945715,0.00025479,2]
[372560040,1752682307037,-619.98215349,0.00025479,2]
[372560041,1752682307049,-585.42986327,0.00025479,2]
[372560042,1752682307059,-777.65,0.00025479,2]
[372560043,1752682307069,-1172.13398302,0.00025479,2]
[372560044,1752682307078,-1533.65622255,0.00025479,2]
[372560045,1752682307088,-569.85475707,0.00025479,2]
[372560046,1752682307101,-2073.16201026,0.00025479,2]
[372560047,1752682307272,-6731.5972344,0.00025479,2]
[372560048,1752682307282,-3198.29326557,0.00025479,2]
[372560049,1752682307291,-512.40908013,0.00025479,2]
[372560050,1752682307303,-605.46170626,0.00025479,2]
[372560051,1752682307314,-2434.57,0.00025479,2]
[372560052,1752682307324,-838.25121252,0.00025479,2]
[372560053,1752682307333,-5102.5866516,0.00025479,2]
[372560054,1752682307343,-602.28752327,0.00025479,2]
[372560055,1752682307352,-1404.6016938,0.00025479,2]
[372560056,1752682307365,-499.87,0.00025479,2]
[372560057,1752682307375,-1737.15588519,0.00025479,2]
[372560058,1752682307385,-8485.54962448,0.00025479,2]
[372560059,1752682307396,-1068.84337298,0.00025479,2]
[372560060,1752682307406,-715.79257554,0.00025479,2]
[372560061,1752682307416,-957.82515361,0.00025479,2]
[372560062,1752682307426,-1077.54287452,0.00025479,2]
[372560063,1752682307437,-461.92,0.00025479,2]
[372560064,1752682307447,-1116.08036734,0.00025479,2]
[372560065,1752682307457,-523.90077664,0.00025479,2]
[372560066,1752682307467,-4066.74294534,0.00025479,2]
[372560067,1752682307477,-619.3630995,0.00025479,2]
[372560068,1752682307487,-574.32946243,0.00025479,2]
[372560069,1752682307496,-1328.31037382,0.00025479,2]
[372560070,1752682307506,-2300.00095116,0.00025479,2]
[372560071,1752682307515,-773.11647143,0.00025479,2]
[372560072,1752682307526,-918.74121459,0.00025479,2]
[372560073,1752682307535,-4581.07404338,0.00025479,2]
[372560074,1752682307545,-755.59601679,0.00025479,2]
[372560075,1752682307557,-913.30230783,0.00025479,2]
[372560076,1752682307567,-810.79,0.00025479,2]
[372560077,1752682307576,-1927.65999762,0.00025479,2]
[372560078,1752682307586,-477.79716651,0.00025479,2]
[372560079,1752682307596,-156.86,0.00025479,2]
[372560080,1752682307606,-2099.11,0.00025479,2]
[372560081,1752682307615,-850.90483581,0.00025479,2]
[372560082,1752682307625,-3246.18249149,0.00025479,2]
[372560083,1752682307634,-496.411735,0.00025479,2]
[372560084,1752682307644,-1129.67350672,0.00025479,2]
[372560085,1752682307654,-4054.50052557,0.00025479,2]
[372560086,1752682307663,-500.0,0.0002548,2]
[372560087,1752682307673,-552.57782193,0.0002548,2]
[372560088,1752682307683,-151.56777351,0.0002548,2]
[372560089,1752682307702,-500.0,0.0002548,2]
[372560090,1752682307721,-151.0,0.0002548,2]
[372560091,1752682307741,-1240.0,0.0002548,2]
[372560092,1752682307760,-500.0,0.0002548,2]
[372560093,1752682307782,-250.90115776,0.0002548,2]
[372560094,1752682307799,-500.0,0.0002548,2]
[372560095,1752682307819,-199.56185223,0.0002548,2]
[372560096,1752682307835,-500.0,0.0002548,2]
[372560097,1752682307854,-151.0,0.0002548,2]
[372560098,1752682307875,-151.0,0.0002548,2]
[372560099,1752682307895,-151.0,0.0002548,2]
[372560100,1752682307909,-500.0,0.0002548,2]
[372560101,1752682307929,-1809.0,0.0002548,2]
[372560102,1752682307945,-500.0,0.0002548,2]
[372560103,1752682307960,-500.0,0.0002548,2]
[372560104,1752682307975,-500.0,0.0002548,2]
[372560105,1752682307991,-525.92121606,0.0002548,2]
[372560106,1752682308006,-200.52802804,0.0002548,2]
[372560107,1752682308021,-500.0,0.0002548,2]
[372560108,1752682308037,-500.0,0.0002548,2]
[372560109,1752682308054,-1000.0,0.0002548,5]
[372560110,1752682308071,-309.068159,0.00025493,10]
[372560111,1752682308087,-1000.0,0.000255,5]
[372560112,1752682308102,-303.5,0.00025511,7]
[372560113,1752682308118,-1000.0,0.0002552,5]
[372560114,1752682308130,-900.0,0.0002554,2]
[372560115,1752682308141,-1000.0,0.0002554,5]
[372560116,1752682308150,-309.068159,0.0002555,2]
[372560117,1752682308160,-180.341591,0.0002555,2]
[372560118,1752682308170,-500.0,0.00025559,2]
[372560119,1752682308180,-205.0,0.0002556,2]
[372560120,1752682308190,-206.0,0.0002556,2]
[372560121,1752682308200,-205.0,0.0002556,2]
[372560122,1752682308209,-1000.0,0.0002556,5]
[372560123,1752682308219,-500.0,0.00025574,2]
[372560124,1752682308229,-500.0,0.00025576,2]
[372560125,1752682308238,-1000.0,0.0002558,5]
[372560126,1752682308249,-1127.071532,0.0002558,5]
[372560127,1752682308258,-499.3,0.00025582,2]
[372560128,1752682308268,-1600.0,0.00025582,2]
[372560129,1752682308278,-231.28369723,0.00025587,2]
[372560130,1752682308287,-500.0,0.00025587,2]
[372560131,1752682308297,-500.0,0.00025599,10]
[372560132,1752682308314,-2000.0,0.000256,2]
[372560133,1752682308324,-2000.0,0.000256,2]
[372560134,1752682308334,-2000.0,0.000256,2]
[372560135,1752682308344,-2000.0,0.000256,2]
[372560136,1752682308354,-457.001417,0.000256,5]
[372560137,1752682308365,-1000.0,0.000256,5]
[372560138,1752682308375,-1000.0,0.000256,5]
[372560139,1752682308385,-500.0,0.00025602,2]
[372560140,1752682308395,-500.0,0.00025631,2]
[372560141,1752682308406,-7562.15499518,0.00025659,13]
[372560142,1752682308416,-309.068159,0.00025698,20]
[372560143,1752682308426,-763.18,0.000257,31]
[372560144,1752682308436,-763.18,0.000257,31]
[372560145,1752682308448,-763.18,0.000257,31]
[372560146,1752682308458,-763.18,0.000257,31]
[372560147,1752682308468,-763.18,0.000257,31]
[372560148,1752682308478,-763.18,0.000257,31]
[372560149,1752682308488,-497.99829822,0.000257,31]
[372560150,1752682308570,-460.0,0.00020547,2]
[372560151,1752682308580,-115.08882759,0.00020821,2]
[372560152,1752682308592,-344.91117241,0.00020821,2]
[372560153,1752682308602,-460.0,0.00021095,2]
[372560154,1752682308612,-460.0,0.00021369,2]
[372560155,1752682308622,-460.0,0.00021643,2]
[372560156,1752682308632,-1650.379535,0.00024586,7]
[372560157,1752682308643,-1650.379535,0.000249,7]
[372560158,1752682308653,-178.021619,0.00025068,2]
[372560159,1752682308663,-576.8651031,0.00025301,2]
[372560160,1752682308673,-321.3878512,0.0002532,2]
[372560161,1752682308683,-265.18170178,0.000257,31]
[372560162,1752682308693,-763.18,0.000257,31]
[372560163,1752682308703,-763.18,0.000257,31]
[372560164,1752682308713,-763.18,0.000257,31]
[372560165,1752682308723,-763.18,0.000257,31]
[372560166,1752682308734,-763.18,0.000257,31]
[372560167,1752682309212,-763.18,0.000257,31]
[372560168,1752682309228,-763.18,0.000257,31]
[372560169,1752682309246,-178.67804762,0.000257,31]
[372560170,1752682309262,-584.50195238,0.000257,31]
[372560171,1752682309273,-763.18,0.000257,31]
[372560172,1752682309282,-763.18,0.000257,31]
[372560173,1752682309293,-763.18,0.000257,31]
[372560174,1752682309311,-763.18,0.000257,31]
[372560175,1752682309322,-763.18,0.000257,31]
[372560176,1752682309333,-763.18,0.000257,31]
[372560177,1752682309343,-763.18,0.000257,31]
[372560178,1752682309354,-763.18,0.000257,31]
[372560179,1752682309365,-763.18,0.000257,31]
[372560180,1752682309376,-900.0,0.00025708,2]
[372560181,1752682309387,-647.0,0.00025721,2]
[372560182,1752682309397,-500.0,0.00025725,2]
[372560183,1752682309407,-500.0,0.00025725,2]
[372560184,1752682309417,-309.068159,0.00025746,20]
[372560185,1752682309427,-2155.0,0.00025752,2]
[372560186,1752682309438,-968.0,0.00025752,2]
[372560187,1752682309448,-407.0,0.00025752,2]
[372560188,1752682309459,-407.0,0.00025752,2]
[372560189,1752682309469,-151.0,0.00025753,7]
[372560190,1752682309479,-151.0,0.00025753,3]
[372560191,1752682309491,-151.0,0.00025753,3]
[372560192,1752682309502,-500.0,0.00025754,2]
[372560193,1752682309512,-500.0,0.00025754,2]
[372560194,1752682309522,-191.13645195,0.00025754,2]
[372560195,1752682309533,-1240.0,0.00025754,2]
[372560196,1752682309543,-571.52684723,0.00025754,2]
[372560197,1752682309557,-500.0,0.00025754,2]
[372560198,1752682309567,-181.48423767,0.00025754,2]
[372560199,1752682309576,-500.0,0.00025754,2]
[372560200,1752682309586,-1809.0,0.00025754,2]
[372560201,1752682309596,-500.0,0.00025754,2]
[372560202,1752682309607,-517.20393213,0.00025754,2]
[372560203,1752682309617,-459.13072546,0.00025754,2]
[372560204,1752682309626,-500.0,0.00025754,2]
[372560205,1752682309635,-500.0,0.00025754,2]
[372560206,1752682309645,-150.6881,0.00025758,2]
[372560207,1752682309655,-316.0,0.00025775,7]
[372560208,1752682309665,-900.0,0.00025784,2]
[372560209,1752682309675,-500.0,0.00025788,2]
[372560210,1752682309686,-160.0,0.00025789,12]
[372560211,1752682309698,-161.00384161,0.00025789,5]
[372560212,1752682309708,-309.068159,0.00025793,20]
[372560213,1752682309719,-401.495329,0.000258,2]
[372560214,1752682309730,-151.0,0.00025838,7]
[372560215,1752682309741,-151.0,0.00025838,7]
[372560216,1752682309751,-151.0,0.00025838,7]
[372560217,1752682309761,-151.0,0.00025838,7]
[372560218,1752682309771,-151.0,0.00025838,7]
[372560219,1752682309781,-151.0,0.00025838,7]
[372560220,1752682309792,-151.0,0.00025838,7]
[372560221,1752682309807,-151.0,0.00025838,7]
[372560222,1752682309817,-151.0,0.00025838,7]
[372560223,1752682309826,-151.0,0.00025838,7]
[372560224,1752682309836,-151.0,0.00025838,7]
[372560225,1752682309845,-151.0,0.00025838,7]
[372560226,1752682309855,-151.0,0.00025838,7]
[372560227,1752682309865,-151.0,0.00025838,7]
[372560228,1752682309874,-151.0,0.00025838,7]
[372560229,1752682309884,-151.0,0.00025838,7]
[372560230,1752682309893,-151.0,0.00025838,7]
[372560231,1752682309903,-151.0,0.00025838,7]
[372560232,1752682309914,-151.0,0.00025838,7]
[372560233,1752682309923,-151.0,0.00025838,7]
[372560234,1752682309933,-151.0,0.00025838,7]
[372560235,1752682309943,-151.0,0.00025838,7]
[372560236,1752682309953,-151.0,0.00025838,7]
[372560237,1752682309963,-151.0,0.00025838,7]
[372560238,1752682309974,-151.0,0.00025838,7]
[372560239,1752682309988,-151.0,0.00025838,7]
[372560240,1752682309999,-151.17333,0.00025838,7]
[372560241,1752682310010,-151.17333,0.00025838,7]
[372560242,1752682310019,-151.17333,0.00025838,7]
[372560243,1752682310029,-151.17333,0.00025838,7]
[372560244,1752682310038,-151.17333,0.00025838,7]
[372560245,1752682310048,-151.17333,0.00025838,7]
[372560246,1752682310063,-151.17333,0.00025838,7]
[372560247,1752682310072,-151.17333,0.00025838,7]
[372560248,1752682310081,-151.17333,0.00025838,7]